fUSD/lending_fUSD_20260616
["ID","MTS","AMOUNT","RATE_DAILY","PERIOD"]
[425145734,1781548306000,-500.0,0.00038407,120]
[425145730,1781548306000,-500.0,0.00038407,120]
[425145738,1781548306000,-500.0,0.00038407,120]
[425145741,1781548306000,-500.0,0.00038407,120]
[425145740,1781548306000,-500.0,0.00038407,120]
[425145739,1781548306000,-500.0,0.00038407,120]
[425145742,1781548306000,-500.0,0.00038407,120]
[425145735,1781548306000,-500.0,0.00038407,120]
[425145749,1781548306000,-500.0,0.00038407,120]
[425145753,1781548306000,-500.0,0.00038407,120]
[425145736,1781548306000,-500.0,0.00038407,120]
[425145747,1781548306000,-500.0,0.00038407,120]
[425145757,1781548306000,-234.66857153,0.00038407,120]
[425145759,1781548306000,-500.0,0.00038407,120]
[425145758,1781548306000,-329.79772871,0.00038407,120]
[425145748,1781548306000,-500.0,0.00038407,120]
[425145745,1781548306000,-500.0,0.00038407,120]
[425145744,1781548306000,-500.0,0.00038407,120]
[425145743,1781548306000,-500.0,0.00038407,120]
[425145737,1781548306000,-500.0,0.00038407,120]
[425145746,1781548306000,-500.0,0.00038407,120]
[425145826,1781548307000,-600.0,0.00038407,120]
[425145825,1781548307000,-600.0,0.00038407,120]
[425145824,1781548307000,-600.0,0.00038407,120]
[425145835,1781548307000,-3600.0,0.00038407,120]
[425145827,1781548307000,-600.0,0.00038407,120]
[425145818,1781548307000,-600.0,0.00038407,120]
[425145821,1781548307000,-600.0,0.00038407,120]
[425145822,1781548307000,-600.0,0.00038407,120]
[425145823,1781548307000,-600.0,0.00038407,120]
[425145817,1781548307000,-600.0,0.00038407,120]
[425145820,1781548307000,-600.0,0.00038407,120]
[425145828,1781548307000,-288.09750576,0.00038407,120]
[425145819,1781548307000,-600.0,0.00038407,120]
[425145832,1781548307000,-3600.0,0.00038407,120]
[425145845,1781548307000,-2069.0,0.00038408,120]
[425145834,1781548307000,-3600.0,0.00038407,120]
[425145830,1781548307000,-3600.0,0.00038407,120]
[425145831,1781548307000,-3600.0,0.00038407,120]
[425145833,1781548307000,-3600.0,0.00038407,120]
[425145836,1781548307000,-3600.0,0.00038407,120]
[425145837,1781548307000,-3600.0,0.00038407,120]
[425145842,1781548307000,-3600.0,0.00038407,120]
[425145840,1781548307000,-3600.0,0.00038407,120]
[425145838,1781548307000,-3600.0,0.00038407,120]
[425145839,1781548307000,-3600.0,0.00038407,120]
[425145841,1781548307000,-3600.0,0.00038407,120]
[425145843,1781548307000,-3185.50383149,0.00038407,120]
[425145814,1781548307000,-600.0,0.00038407,120]
[425145829,1781548307000,-50000.0,0.00038407,50]
[425145813,1781548307000,-600.0,0.00038407,120]
[425145797,1781548307000,-500.0,0.00038407,120]
[425145811,1781548307000,-600.0,0.00038407,120]
[425145784,1781548307000,-500.0,0.00038407,120]
[425145785,1781548307000,-500.0,0.00038407,120]
[425145789,1781548307000,-500.0,0.00038407,120]
[425145795,1781548307000,-500.0,0.00038407,120]
[425145793,1781548307000,-500.0,0.00038407,120]
[425145788,1781548307000,-500.0,0.00038407,120]
[425145791,1781548307000,-500.0,0.00038407,120]
[425145786,1781548307000,-500.0,0.00038407,120]
[425145792,1781548307000,-500.0,0.00038407,120]
[425145796,1781548307000,-500.0,0.00038407,120]
[425145787,1781548307000,-500.0,0.00038407,120]
[425145794,1781548307000,-500.0,0.00038407,120]
[425145790,1781548307000,-500.0,0.00038407,120]
[425145799,1781548307000,-500.0,0.00038407,120]
[425145807,1781548307000,-600.0,0.00038407,120]
[425145808,1781548307000,-600.0,0.00038407,120]
[425145805,1781548307000,-600.0,0.00038407,120]
[425145809,1781548307000,-600.0,0.00038407,120]
[425145806,1781548307000,-600.0,0.00038407,120]
[425145804,1781548307000,-600.0,0.00038407,120]
[425145802,1781548307000,-530.04570789,0.00038407,120]
[425145798,1781548307000,-500.0,0.00038407,120]
[425145803,1781548307000,-300.01758142,0.00038407,120]
[425145801,1781548307000,-500.0,0.00038407,120]
[425145800,1781548307000,-500.0,0.00038407,120]
[425145846,1781548307000,-2112.0,0.00038408,120]
[425145812,1781548307000,-600.0,0.00038407,120]
[425145810,1781548307000,-600.0,0.00038407,120]
[425145816,1781548307000,-600.0,0.00038407,120]
[425145815,1781548307000,-600.0,0.00038407,120]
[425145844,1781548307000,-1734.68,0.00038408,2]
[425145878,1781548307000,-3332.15219382,0.00038408,2]
[425145848,1781548307000,-208.0,0.00038408,120]
[425145884,1781548307000,-15367.50701259,0.00038408,2]
[425145880,1781548307000,-15218.00603304,0.00038408,2]
[425145881,1781548307000,-550.0,0.00038408,2]
[425145882,1781548307000,-11015.98045182,0.00038408,2]
[425145879,1781548307000,-180.1661399,0.00038408,2]
[425145888,1781548307000,-15233.84920743,0.00038408,2]
[425145891,1781548307000,-413.14125551,0.00038408,2]
[425145897,1781548307000,-290.26533943,0.00038408,2]
[425145892,1781548307000,-20879.25538324,0.00038408,2]
[425145890,1781548307000,-280.42775419,0.00038408,2]
[425145893,1781548307000,-2504.90276303,0.00038408,2]
[425145889,1781548307000,-12591.14092124,0.00038408,2]
[425145900,1781548307000,-899.27862697,0.00038408,2]
[425145876,1781548307000,-2779.42344409,0.00038408,2]
[425145896,1781548307000,-208.20483445,0.00038408,2]
[425145898,1781548307000,-5853.79623032,0.00038408,2]
[425145895,1781548307000,-886.13655306,0.00038408,2]
[425145894,1781548307000,-864.15735509,0.00038408,2]
[425145903,1781548307000,-610.0,0.00038408,2]
[425145901,1781548307000,-472.75818776,0.00038408,2]
[425145910,1781548307000,-379.0,0.00038408,2]
[425145905,1781548307000,-519.53820281,0.00038408,2]
[425145904,1781548307000,-363.71287612,0.00038408,2]
[425145906,1781548307000,-204.74161204,0.00038408,2]
[425145908,1781548307000,-201.79919068,0.00038408,2]
[425145907,1781548307000,-762.26383393,0.00038408,2]
[425145909,1781548307000,-1533.05420581,0.00038408,2]
[425145847,1781548307000,-154.0,0.00038408,120]
[425145899,1781548307000,-2231.92258168,0.00038408,2]
[425145883,1781548307000,-175025.38990295,0.00038408,2]
[425145902,1781548307000,-150.0,0.00038408,2]
[425145886,1781548307000,-8012.26661639,0.00038408,2]
[425145860,1781548307000,-10789.03847609,0.00038408,4]
[425145877,1781548307000,-586276.70188636,0.00038408,2]
[425145851,1781548307000,-154.0,0.00038408,120]
[425145850,1781548307000,-260.0,0.00038408,120]
[425145849,1781548307000,-717.0,0.00038408,120]
[425145852,1781548307000,-10999.64,0.00038408,60]
[425145853,1781548307000,-614.7,0.00038408,60]
[425145854,1781548307000,-1311.0,0.00038408,120]
[425145857,1781548307000,-256.0,0.00038408,120]
[425145858,1781548307000,-448589.53879222,0.00038408,25]
[425145855,1781548307000,-217.0,0.00038408,120]
[425145856,1781548307000,-500.0,0.00038408,120]
[425145859,1781548307000,-8774.25432868,0.00038408,2]
[425145862,1781548307000,-338.74286751,0.00038408,2]
[425145861,1781548307000,-233186.55625943,0.00038408,2]
[425145867,1781548307000,-2880.09681696,0.00038408,2]
[425145885,1781548307000,-6000.0,0.00038408,2]
[425145870,1781548307000,-1562.28578206,0.00038408,2]
[425145875,1781548307000,-2525.86571785,0.00038408,2]
[425145873,1781548307000,-504.41972861,0.00038408,2]
[425145887,1781548307000,-3932.14003837,0.00038408,2]
[425145871,1781548307000,-1058.03986897,0.00038408,2]
[425145874,1781548307000,-1529.7728511,0.00038408,2]
[425145872,1781548307000,-5336.18537081,0.00038408,2]
[425145864,1781548307000,-1210.0,0.00038408,2]
[425145869,1781548307000,-993.45061711,0.00038408,2]
[425145865,1781548307000,-722.39712636,0.00038408,2]
[425145868,1781548307000,-345.09214258,0.00038408,2]
[425145863,1781548307000,-402.04517809,0.00038408,2]
[425145866,1781548307000,-357.92137306,0.00038408,2]
[425145933,1781548308000,-189.26833865,0.00038408,2]
[425145932,1781548308000,-2260.52219367,0.00038408,2]
[425145935,1781548308000,-998.06027859,0.00038408,2]
[425145939,1781548308000,-502.60994009,0.00038408,3]
[425145943,1781548308000,-642.50488751,0.00038408,2]
[425145947,1781548308000,-350.89844349,0.00038408,2]
[425145942,1781548308000,-1059.37640526,0.00038408,2]
[425145941,1781548308000,-1310.95187765,0.00038408,2]
[425145946,1781548308000,-2500.0,0.00038408,2]
[425145940,1781548308000,-384.81157505,0.00038408,2]
[425145950,1781548308000,-232.54137528,0.00038408,2]
[425145948,1781548308000,-1100.0,0.00038408,2]
[425145945,1781548308000,-1094.14636614,0.00038408,2]
[425145944,1781548308000,-220.26484688,0.00038408,2]
[425145952,1781548308000,-631.85512396,0.00038408,2]
[425145962,1781548308000,-594214.17682146,0.00038408,25]
[425145951,1781548308000,-493.98334091,0.00038408,2]
[425145934,1781548308000,-643.0,0.00038408,2]
[425145954,1781548308000,-562.43556771,0.00038408,2]
[425145949,1781548308000,-935.63014088,0.00038408,2]
[425145936,1781548308000,-589.26577624,0.00038408,2]
[425145920,1781548308000,-102016.01965701,0.00038408,2]
[425145926,1781548308000,-1295.98347651,0.00038408,2]
[425145963,1781548308000,-778.6125712,0.00038408,2]
[425145912,1781548308000,-160.95819747,0.00038408,2]
[425145911,1781548308000,-468.97846303,0.00038408,2]
[425145913,1781548308000,-1147.44471021,0.00038408,2]
[425145914,1781548308000,-180.0,0.00038408,2]
[425145916,1781548308000,-318.92842669,0.00038408,2]
[425145918,1781548308000,-769.07402138,0.00038408,2]
[425145917,1781548308000,-222733.89026972,0.00038408,2]
[425145915,1781548308000,-2277.72679013,0.00038408,2]
[425145929,1781548308000,-560.79569229,0.00038408,2]
[425145923,1781548308000,-1723.48705099,0.00038408,2]
[425145919,1781548308000,-23590.40706572,0.00038408,2]
[425145921,1781548308000,-530726.70023319,0.00038408,25]
[425145922,1781548308000,-155.46303179,0.00038408,2]
[425145927,1781548308000,-250.99092494,0.00038408,2]
[425145931,1781548308000,-1348.91807825,0.00038408,2]
[425145937,1781548308000,-234.72383746,0.00038408,2]
[425145928,1781548308000,-1071.23427465,0.00038408,2]
[425145930,1781548308000,-1095.48965898,0.00038408,2]
[425145938,1781548308000,-178.13617152,0.00038408,2]
[425145925,1781548308000,-500.0,0.00038408,2]
[425145953,1781548308000,-1628.20319965,0.00038408,2]
[425145924,1781548308000,-255.98275855,0.00038408,2]
[425145957,1781548308000,-2262.23242709,0.00038408,2]
[425145983,1781548308000,-13004.04879346,0.00038408,2]
[425145982,1781548308000,-13223.12517724,0.00038408,2]
[425145986,1781548308000,-500183.31295809,0.00038408,2]
[425145981,1781548308000,-3524.7894788,0.00038408,2]
[425145984,1781548308000,-20000.0,0.00038408,2]
[425145985,1781548308000,-5050.752914,0.00038408,7]
[425145989,1781548308000,-15442.92004621,0.00038408,3]
[425145992,1781548308000,-153461.56625223,0.00038408,2]
[425145991,1781548308000,-44401.31302308,0.00038408,15]
[425145979,1781548308000,-59067.15439456,0.00038408,2]
[425145993,1781548308000,-587.44565831,0.00038408,5]
[425146000,1781548308000,-1127.47763557,0.00038408,5]
[425145995,1781548308000,-1018.52000469,0.00038408,5]
[425145999,1781548308000,-227.90124602,0.00038408,5]
[425145990,1781548308000,-400.0,0.00038408,7]
[425145994,1781548308000,-2070.11682711,0.00038408,5]
[425145998,1781548308000,-20003.31123331,0.00038408,5]
[425145996,1781548308000,-600.0,0.00038408,5]
[425146002,1781548308000,-317.56153446,0.00038408,12]
[425146001,1781548308000,-508.66499341,0.00038408,5]
[425145997,1781548308000,-500.0,0.00038408,5]
[425145980,1781548308000,-9518.96294889,0.00038408,2]
[425145955,1781548308000,-1037.84544816,0.00038408,2]
[425145976,1781548308000,-2042.05013365,0.00038408,4]
[425145978,1781548308000,-5409.00131116,0.00038408,4]
[425145958,1781548308000,-1884.20517118,0.00038408,2]
[425145961,1781548308000,-500000.0,0.00038408,25]
[425145960,1781548308000,-700.0,0.00038408,2]
[425145959,1781548308000,-1147.13729583,0.00038408,2]
[425145956,1781548308000,-374.21417182,0.00038408,2]
[425145964,1781548308000,-3962.35624417,0.00038408,12]
[425145974,1781548308000,-150.0,0.00038408,7]
[425145975,1781548308000,-1221.0,0.00038408,4]
[425145965,1781548308000,-500.0,0.00038408,10]
[425145968,1781548308000,-598504.68475247,0.00038408,25]
[425145966,1781548308000,-376.09275328,0.00038408,14]
[425145967,1781548308000,-225.49621242,0.00038408,7]
[425145971,1781548308000,-1340.79899886,0.00038408,15]
[425145972,1781548308000,-1690.45821988,0.00038408,18]
[425145970,1781548308000,-10000.0,0.00038408,3]
[425145969,1781548308000,-11020.40997805,0.00038408,3]
[425145977,1781548308000,-7069.20242308,0.00038408,4]
[425145988,1781548308000,-15930.1932611,0.00038408,3]
[425145987,1781548308000,-1006.0,0.00038408,15]
[425145973,1781548308000,-2538.96336222,0.00038408,7]
[425146005,1781548309000,-2486.89705127,0.00038408,14]
[425146004,1781548309000,-241.51478145,0.00038408,12]
[425146003,1781548309000,-257.17118102,0.00038408,12]
[425146006,1781548309000,-10652.4596322,0.00038408,2]
[425146011,1781548309000,-2796.0,0.00038408,15]
[425146009,1781548309000,-1013760.02648169,0.00038408,25]
[425146010,1781548309000,-653.37798458,0.00038408,6]
[425146008,1781548309000,-840.27408818,0.00038408,2]
[425146007,1781548309000,-360713.62186275,0.00038408,25]
[425146016,1781548309000,-15450.57023241,0.00038408,7]
[425146015,1781548309000,-200.01,0.00038408,3]
[425146017,1781548309000,-1563381.04684092,0.00038408,25]
[425146013,1781548309000,-200.0,0.00038408,3]
[425146014,1781548309000,-200.01,0.00038408,3]
[425146012,1781548309000,-20000.0,0.00038408,21]
[425146020,1781548310000,-160.760827,0.00032877,7]
[425146018,1781548310000,-922.46893326,0.0003841,25]
[425146026,1781548310000,-3739.33983606,0.0003841,25]
[425146019,1781548310000,-475.39991432,0.0003841,25]
[425146024,1781548310000,-213445.8,0.0003841,25]
[425146023,1781548310000,-8460.0,0.0003841,25]
[425146022,1781548310000,-1907.96512412,0.0003841,25]
[425146021,1781548310000,-3871.71218088,0.0003841,25]
[425146025,1781548310000,-1006.657166,0.00032877,7]
[425146035,1781548311000,-210.738471,0.00032877,7]
[425146047,1781548311000,-150.0,0.00028493,2]
[425146046,1781548311000,-10682.86471821,0.0003841,25]
[425146043,1781548311000,-657.784135,0.00035616,30]
[425146042,1781548311000,-657.784135,0.00035616,30]
[425146044,1781548311000,-657.784135,0.00035616,30]
[425146036,1781548311000,-1006.657166,0.00032877,7]
[425146037,1781548311000,-210.738471,0.00032877,7]
[425146039,1781548311000,-210.738471,0.00032877,7]
[425146041,1781548311000,-657.784135,0.00035616,30]
[425146040,1781548311000,-657.784135,0.00035616,30]
[425146033,1781548311000,-182.6652447,0.00032877,7]
[425146034,1781548311000,-823.9919213,0.00032877,7]
[425146031,1781548311000,-60.14176604,0.00032877,7]
[425146032,1781548311000,-150.59670496,0.00032877,7]
[425146030,1781548311000,-1006.657166,0.00032877,7]
[425146027,1781548311000,-210.738471,0.00032877,7]
[425146028,1781548311000,-1006.657166,0.00032877,7]
[425146052,1781548311000,-1094.31273016,0.0003841,7]
[425146038,1781548311000,-1006.65717,0.00032877,7]
[425146029,1781548311000,-210.738471,0.00032877,7]
[425146053,1781548311000,-490.42501394,0.0003841,7]
[425146051,1781548311000,-1128.84418135,0.0003841,7]
[425146069,1781548311000,-207.74723185,0.0003841,2]
[425146070,1781548311000,-888809.02736241,0.0003841,25]
[425146068,1781548311000,-150.0,0.0003841,7]
[425146061,1781548311000,-605.27,0.0003841,3]
[425146064,1781548311000,-470.07,0.0003841,3]
[425146066,1781548311000,-13743.77649561,0.0003841,2]
[425146067,1781548311000,-204562.54652996,0.0003841,25]
[425146059,1781548311000,-150.0,0.0003841,15]
[425146058,1781548311000,-628553.91,0.0003841,25]
[425146063,1781548311000,-470.08,0.0003841,3]
[425146045,1781548311000,-657.784135,0.00035616,30]
[425146062,1781548311000,-605.27,0.0003841,3]
[425146065,1781548311000,-470.07,0.0003841,3]
[425146060,1781548311000,-605.27,0.0003841,3]
[425146056,1781548311000,-3365.45000523,0.0003841,7]
[425146055,1781548311000,-500.0,0.0003841,7]
[425146054,1781548311000,-8300.0,0.0003841,7]
[425146049,1781548311000,-10046.72871563,0.0003841,2]
[425146048,1781548311000,-251889.50195009,0.0003841,25]
[425146050,1781548311000,-560.45041025,0.0003841,7]
[425146057,1781548311000,-229.71019873,0.0003841,7]
[425146071,1781548312000,-150.0,0.00010435,2]
[425146073,1781548312000,-191.86689808,0.0001295,2]
[425146072,1781548312000,-160.0,0.00012642,2]
[425146075,1781548312000,-450.0,0.00028493,2]
[425146074,1781548312000,-181.24391002,0.00028493,2]
[425146076,1781548312000,-450.0,0.00028493,2]
[425146077,1781548312000,-263.83443917,0.00028493,2]
[425146079,1781548312000,-127.80943917,0.00028493,2]
[425146081,1781548312000,-150.76822901,0.00012642,2]
[425146082,1781548312000,-759.00772999,0.00012642,2]
[425146080,1781548312000,-1943.474571,0.00012642,2]
[425146078,1781548312000,-186.16556083,0.00028493,2]
[425146084,1781548313000,163.02660773,0.0003011,120]
[425146083,1781548313000,156.681933,7.945e-05,2]
[425146088,1781548382000,241.53,0.00030082,120]
[425146087,1781548382000,-150.0,9.19e-05,2]
[425146089,1781548383000,241.53,0.00030081,120]
[425146090,1781548388000,3670.084276,0.0002842,120]
[425146091,1781548435000,-9989.726,9.878e-05,2]
[425146092,1781548454000,-670.721,9.878e-05,2]
[425146093,1781548506000,-250.0,9.963e-05,2]
[425146094,1781548561000,-30795.22435959,9.98e-05,2]
[425146095,1781548579000,-150.0,9.979e-05,2]
[425146096,1781548632000,-3607.26,9.98e-05,2]
[425146097,1781548653000,-500.0,9.979e-05,2]
[425146098,1781548704000,-8712.89056585,9.98e-05,2]
[425146099,1781548724000,-8712.89056585,9.98e-05,2]
[425146100,1781548816000,183.13940149,0.0003011,120]
[425146101,1781548828000,1000.0,0.0003,120]
[425146102,1781548888000,326.93,0.00030077,120]
[425146106,1781548934000,200.0,0.00030134,120]
[425146105,1781548934000,200.0,0.00030134,120]
[425146104,1781548934000,200.0,0.00030134,120]
[425146103,1781548934000,-2500.0,9.88e-05,2]
[425146107,1781548935000,200.0,0.00030134,120]
[425146108,1781548935000,200.0,0.00030134,120]
[425146109,1781548987000,-2514.76,9.88e-05,2]
[425146110,1781549011000,-67.8262,9.88e-05,2]
[425146111,1781549036000,264.38,0.00030077,120]
[425146112,1781549064000,-2497.431,9.78e-05,2]
[425146113,1781549066000,217.36311823,0.0003011,120]
[425146114,1781549086000,-4182.1809,9.88e-05,2]
[425146187,1781549116000,205.62550985,0.0003011,120]
[425146188,1781549136000,-150.0,9.878e-05,2]
[425146190,1781549189000,194.52173232,0.0003011,120]
[425146189,1781549189000,-8712.89056585,9.88e-05,2]
[425146191,1781549190000,544.88,0.00030077,120]
[425146192,1781549210000,-8712.89056585,9.88e-05,2]
[425146193,1781549231000,-9340.22,9.88e-05,2]
[425146195,1781549251000,193.52546786,0.0003011,120]
[425146194,1781549251000,-9340.22,9.88e-05,2]
[425146196,1781549282000,236.957885,0.0003005,120]
[425146198,1781549288000,1270.98749289,0.00010078,7]
[425146197,1781549288000,1270.98749289,9.88e-05,7]
[425146200,1781549289000,1270.98749289,0.0001067,7]
[425146199,1781549289000,1270.98749289,0.00010374,7]
[425146201,1781549290000,1270.9874929,0.00011066,7]
[425146202,1781549296000,216.08035496,0.0003011,120]
[425146204,1781549348000,379.142617,0.0003005,120]
[425146205,1781549356000,204.41201579,0.0003011,120]
[425146206,1781549381000,189.576308,0.0003005,120]
[425146207,1781549382000,1000.0,0.00030136,120]
[425146208,1781549392000,1045.70282782,9.779e-05,3]
[425146210,1781549393000,1045.70282782,9.779e-05,3]
[425146209,1781549393000,1045.70282781,9.779e-05,3]
[425146211,1781549394000,315.71854032,8.98e-05,2]
[425146212,1781549395000,369.41583132,8.794e-05,2]
[425146214,1781549397000,-2155.27367108,9.594e-05,2]
[425146216,1781549397000,-292.33956161,9.594e-05,2]
[425146213,1781549397000,-200.0,9.479e-05,2]
[425146215,1781549397000,-2355.27367108,9.594e-05,2]
[425146217,1781549426000,-601.37309623,9.594e-05,2]
[425146294,1781549446000,193.37376694,0.0003011,120]
[425146293,1781549446000,371762.0,0.00030136,120]
[425146305,1781549447000,-607.56498033,9.687e-05,2]
[425146304,1781549447000,1000.0,0.0003,120]
[425146302,1781549447000,-193.0,9.641e-05,2]
[425146329,1781549448000,-500.0,9.878e-05,2]
[425146330,1781549448000,-500.0,9.878e-05,2]
[425146327,1781549448000,-500.0,9.878e-05,2]
[425146323,1781549448000,-1406578.16298065,9.78e-05,2]
[425146324,1781549448000,-300.0,9.802e-05,2]
[425146322,1781549448000,-528.84460847,9.78e-05,2]
[425146319,1781549448000,-2835.30077155,9.78e-05,2]
[425146317,1781549448000,-1348.3235727,9.78e-05,2]
[425146320,1781549448000,-8460.0,9.78e-05,2]
[425146318,1781549448000,-498.46218116,9.78e-05,2]
[425146315,1781549448000,-2004.20318049,9.78e-05,2]
[425146316,1781549448000,-1187.75083997,9.78e-05,2]
[425146328,1781549448000,-244.56562836,9.878e-05,2]
[425146311,1781549448000,-64.57649059,9.78e-05,2]
[425146308,1781549448000,-1198.03374399,9.687e-05,2]
[425146310,1781549448000,-193.0,9.779e-05,2]
[425146309,1781549448000,-300.0,9.687e-05,2]
[425146312,1781549448000,-73893.87233235,9.78e-05,2]
[425146313,1781549448000,-1079.54729041,9.78e-05,2]
[425146306,1781549448000,-1037.50066142,9.687e-05,2]
[425146307,1781549448000,-291.82891571,9.687e-05,2]
[425146314,1781549448000,-353.89,9.78e-05,2]
[425146325,1781549448000,-500.0,9.878e-05,2]
[425146321,1781549448000,-1167.06575166,9.78e-05,2]
[425146326,1781549448000,-500.0,9.878e-05,2]
[425146331,1781549448000,-480.0113635,9.878e-05,2]
[425146350,1781549448000,-500.0,9.878e-05,2]
[425146353,1781549448000,-500.0,9.878e-05,2]
[425146351,1781549448000,-500.0,9.878e-05,2]
[425146349,1781549448000,-500.0,9.878e-05,2]
[425146352,1781549448000,-500.0,9.878e-05,2]
[425146345,1781549448000,-500.0,9.878e-05,2]
[425146347,1781549448000,-500.0,9.878e-05,2]
[425146346,1781549448000,-500.0,9.878e-05,2]
[425146344,1781549448000,-500.0,9.878e-05,2]
[425146342,1781549448000,-500.0,9.878e-05,2]
[425146348,1781549448000,-500.0,9.878e-05,2]
[425146341,1781549448000,-500.0,9.878e-05,2]
[425146333,1781549448000,-500.0,9.878e-05,2]
[425146339,1781549448000,-500.0,9.878e-05,2]
[425146334,1781549448000,-500.0,9.878e-05,2]
[425146332,1781549448000,-230.6930552,9.878e-05,2]
[425146335,1781549448000,-500.0,9.878e-05,2]
[425146343,1781549448000,-500.0,9.878e-05,2]
[425146337,1781549448000,-500.0,9.878e-05,2]
[425146338,1781549448000,-500.0,9.878e-05,2]
[425146340,1781549448000,-500.0,9.878e-05,2]
[425146336,1781549448000,-500.0,9.878e-05,2]
[425146396,1781549449000,-500.0,9.878e-05,2]
[425146385,1781549449000,-500.0,9.878e-05,2]
[425146386,1781549449000,-500.0,9.878e-05,2]
[425146383,1781549449000,-500.0,9.878e-05,2]
[425146378,1781549449000,-500.0,9.878e-05,2]
[425146381,1781549449000,-500.0,9.878e-05,2]
[425146390,1781549449000,-500.0,9.878e-05,2]
[425146400,1781549449000,-500.0,9.878e-05,2]
[425146389,1781549449000,-500.0,9.878e-05,2]
[425146391,1781549449000,-500.0,9.878e-05,2]
[425146392,1781549449000,-264.25595301,9.878e-05,2]
[425146395,1781549449000,-500.0,9.878e-05,2]
[425146404,1781549449000,-250.0,9.878e-05,2]
[425146397,1781549449000,-500.0,9.878e-05,2]
[425146394,1781549449000,-500.0,9.878e-05,2]
[425146399,1781549449000,-500.0,9.878e-05,2]
[425146393,1781549449000,-500.0,9.878e-05,2]
[425146401,1781549449000,-500.0,9.878e-05,2]
[425146403,1781549449000,-500.0,9.878e-05,2]
[425146408,1781549449000,-500.0,9.878e-05,2]
[425146405,1781549449000,-500.0,9.878e-05,2]
[425146406,1781549449000,-500.0,9.878e-05,2]
[425146407,1781549449000,-589.41679592,9.878e-05,2]
[425146402,1781549449000,-500.0,9.878e-05,2]
[425146382,1781549449000,-500.0,9.878e-05,2]
[425146398,1781549449000,-500.0,9.878e-05,2]
[425146380,1781549449000,-284.15355294,9.878e-05,2]
[425146354,1781549449000,-500.0,9.878e-05,2]
[425146384,1781549449000,-500.0,9.878e-05,2]
[425146412,1781549449000,-2500.0,9.88e-05,2]
[425146355,1781549449000,-500.0,9.878e-05,2]
[425146357,1781549449000,-500.0,9.878e-05,2]
[425146356,1781549449000,-500.0,9.878e-05,2]
[425146358,1781549449000,-500.0,9.878e-05,2]
[425146362,1781549449000,-500.0,9.878e-05,2]
[425146359,1781549449000,-500.0,9.878e-05,2]
[425146364,1781549449000,-500.0,9.878e-05,2]
[425146363,1781549449000,-500.0,9.878e-05,2]
[425146365,1781549449000,-500.0,9.878e-05,2]
[425146360,1781549449000,-500.0,9.878e-05,2]
[425146367,1781549449000,-500.0,9.878e-05,2]
[425146375,1781549449000,-500.0,9.878e-05,2]
[425146374,1781549449000,-500.0,9.878e-05,2]
[425146366,1781549449000,-500.0,9.878e-05,2]
[425146370,1781549449000,-500.0,9.878e-05,2]
[425146372,1781549449000,-500.0,9.878e-05,2]
[425146376,1781549449000,-500.0,9.878e-05,2]
[425146373,1781549449000,-500.0,9.878e-05,2]
[425146371,1781549449000,-500.0,9.878e-05,2]
[425146377,1781549449000,-500.0,9.878e-05,2]
[425146368,1781549449000,-500.0,9.878e-05,2]
[425146369,1781549449000,-500.0,9.878e-05,2]
[425146388,1781549449000,-500.0,9.878e-05,2]
[425146387,1781549449000,-500.0,9.878e-05,2]
[425146379,1781549449000,-500.0,9.878e-05,2]
[425146410,1781549449000,-63297.3052683,9.88e-05,2]
[425146361,1781549449000,-500.0,9.878e-05,2]
[425146411,1781549449000,-6824.0566,9.88e-05,2]
[425146445,1781549449000,-255.0,0.00010867,2]
[425146444,1781549449000,-500.0,0.000107,2]
[425146446,1781549449000,-250.0,0.00010868,2]
[425146443,1781549449000,-1000.0,0.00010666,2]
[425146442,1781549449000,-3628.41,0.00010631,2]
[425146449,1781549449000,-166.66,0.00010959,2]
[425146448,1781549449000,-8350.53548259,0.000109,2]
[425146453,1781549449000,-1830.29,0.00010989,2]
[425146451,1781549449000,-1428.31,0.00010989,2]